[Event "FIDE Women's Grand Swiss 2023"]
[Site "Villa Marina, Douglas, Isle of Man, Isle Of Man"]
[Date "2023.10.30"]
[Round "6.7"]
[White "Muzychuk, Mariya"]
[Black "Injac, Teodora"]
[Result "1-0"]
[TimeControl "40/90 + 30 + 30s/move"]
[WhiteFideId "14114550"]
[BlackFideId "932400"]
[WhiteElo "2519"]
[BlackElo "2426"]

1. d4 {[%clk 01:30:54]} {[%emt 00:00:04]} Nf6 {[%clk 01:30:26]} {[%emt
00:00:34]} 2. c4 {[%clk 01:31:11]} {[%emt 00:00:13]} e6 {[%clk 01:30:45]}
{[%emt 00:00:11]} 3. Nc3 {[%clk 01:31:26]} {[%emt 00:00:15]} d5 {[%clk
01:30:43]} {[%emt 00:00:32]} 4. cxd5 {[%clk 01:31:13]} {[%emt 00:00:44]} exd5
{[%clk 01:31:07]} {[%emt 00:00:06]} 5. Bg5 {[%clk 01:31:34]} {[%emt 00:00:08]}
Be7 {[%clk 01:30:53]} {[%emt 00:00:44]} 6. e3 {[%clk 01:31:50]} {[%emt
00:00:15]} h6 {[%clk 01:30:55]} {[%emt 00:00:27]} 7. Bh4 {[%clk 01:30:13]}
{[%emt 00:02:07]} Bg4 {[%clk 01:30:54]} {[%emt 00:00:31]} 8. Qb3 {[%clk
01:27:07]} {[%emt 00:03:36]} Nbd7 {[%clk 01:28:41]} {[%emt 00:02:43]} 9. Bd3
{[%clk 01:17:21]} {[%emt 00:10:16]} c5 {[%clk 01:24:32]} {[%emt 00:04:40]} 10.
Bxf6 {[%clk 01:14:22]} {[%emt 00:03:29]} Nxf6 {[%clk 01:10:42]} {[%emt
00:14:20]} 11. Bb5+ {[%clk 01:13:37]} {[%emt 00:01:16]} Kf8 {[%clk 00:50:11]}
{[%emt 00:21:01]} 12. dxc5 {[%clk 01:12:30]} {[%emt 00:01:37]} d4 {[%clk
00:48:41]} {[%emt 00:02:00]} 13. exd4 {[%clk 01:12:37]} {[%emt 00:00:23]} Qxd4
{[%clk 00:48:36]} {[%emt 00:00:35]} 14. Nge2 {[%clk 01:11:15]} {[%emt
00:01:52]} Qxc5 {[%clk 00:48:19]} {[%emt 00:00:46]} 15. O-O {[%clk 01:10:46]}
{[%emt 00:00:59]} Qb4 {[%clk 00:45:43]} {[%emt 00:03:06]} 16. Qc2 {[%clk
01:04:26]} {[%emt 00:06:51]} g6 {[%clk 00:45:00]} {[%emt 00:01:13]} 17. a3
{[%clk 01:00:20]} {[%emt 00:04:36]} Qd6 {[%clk 00:40:04]} {[%emt 00:05:26]} 18.
Rad1 {[%clk 00:59:10]} {[%emt 00:01:40]} Qc7 {[%clk 00:39:37]} {[%emt
00:00:57]} 19. h3 {[%clk 00:58:17]} {[%emt 00:01:23]} Bf5 {[%clk 00:35:55]}
{[%emt 00:04:12]} 20. Qa4 {[%clk 00:57:30]} {[%emt 00:01:17]} a6 {[%clk
00:30:05]} {[%emt 00:06:21]} 21. Nd4 {[%clk 00:54:59]} {[%emt 00:03:00]} Qc8
{[%clk 00:20:12]} {[%emt 00:10:22]} 22. Nxf5 {[%clk 00:51:01]} {[%emt
00:04:29]} Qxf5 {[%clk 00:20:31]} {[%emt 00:00:10]} 23. Bd3 {[%clk 00:50:13]}
{[%emt 00:01:17]} Qc5 {[%clk 00:19:01]} {[%emt 00:02:00]} 24. Ne4 {[%clk
00:46:25]} {[%emt 00:04:19]} Qb6 {[%clk 00:17:25]} {[%emt 00:02:05]} 25. Nxf6
{[%clk 00:40:27]} {[%emt 00:06:28]} Bxf6 {[%clk 00:16:33]} {[%emt 00:01:22]} 26.
Be4 {[%clk 00:38:55]} {[%emt 00:02:02]} Qb5 {[%clk 00:11:46]} {[%emt 00:05:17]}
27. Qxb5 {[%clk 00:34:21]} {[%emt 00:05:04]} axb5 {[%clk 00:12:11]} {[%emt
00:00:05]} 28. Rd2 {[%clk 00:34:12]} {[%emt 00:00:37]} b4 {[%clk 00:08:41]}
{[%emt 00:04:02]} 29. axb4 {[%clk 00:32:08]} {[%emt 00:02:34]} Ra4 {[%clk
00:05:03]} {[%emt 00:04:07]} 30. Rd7 {[%clk 00:31:36]} {[%emt 00:01:02]} Kg7
{[%clk 00:02:25]} {[%emt 00:03:09]} 31. Bd5 {[%clk 00:28:18]} {[%emt 00:03:47]}
Rf8 {[%clk 00:02:54]} 32. Rxb7 {[%clk 00:28:36]} {[%emt 00:00:12]} Bxb2 {[%clk
00:03:03]} {[%emt 00:00:21]} 33. Rd1 {[%clk 00:24:30]} {[%emt 00:04:36]} Ra6
{[%clk 00:01:58]} {[%emt 00:01:35]} 34. Rd3 {[%clk 00:21:21]} {[%emt 00:03:39]}
Be5 {[%clk 00:01:45]} {[%emt 00:00:44]} 35. g3 {[%clk 00:20:30]} {[%emt
00:01:20]} g5 {[%clk 00:02:12]} {[%emt 00:00:02]} 36. Rf3 {[%clk 00:17:55]}
{[%emt 00:03:06]} Bf6 {[%clk 00:00:46]} {[%emt 00:01:57]} 37. b5 {[%clk
00:14:57]} {[%emt 00:03:28]} Rd6 {[%clk 00:01:14]} 38. Rf5 {[%clk 00:14:57]}
{[%emt 00:00:30]} Rdd8 {[%clk 00:00:53]} {[%emt 00:00:51]} 39. b6 {[%clk
00:04:13]} {[%emt 00:11:13]} Rd6 {[%clk 00:01:08]} {[%emt 00:00:15]} 40. g4
{[%clk 00:03:52]} {[%emt 00:00:51]} Kg6 {[%clk 00:00:46]} {[%emt 00:00:53]} 41.
Kg2 {[%clk 00:02:46]} {[%emt 00:01:35]} h5 {[%clk 00:29:45]} {[%emt 00:01:31]}
42. Be4 {[%clk 00:30:50]} {[%emt 00:02:26]} Kh6 {[%clk 00:25:04]} {[%emt
00:05:11]} 43. Rd5 {[%clk 00:30:25]} {[%emt 00:00:55]} Rxd5 {[%clk 00:19:43]}
{[%emt 00:05:51]} 44. Bxd5 {[%clk 00:30:52]} {[%emt 00:00:04]} hxg4 {[%clk
00:19:20]} {[%emt 00:00:52]} 45. hxg4 {[%clk 00:31:12]} {[%emt 00:00:10]} Be5
{[%clk 00:09:03]} {[%emt 00:10:48]} 46. Re7 {[%clk 00:19:12]} {[%emt 00:12:30]}
Bd6 {[%clk 00:07:51]} {[%emt 00:01:42]} 47. Rd7 {[%clk 00:18:49]} {[%emt
00:00:53]} Bb8 {[%clk 00:07:35]} {[%emt 00:00:46]} 48. Bxf7 {[%clk 00:17:44]}
{[%emt 00:01:34]} Kg7 {[%clk 00:08:02]} {[%emt 00:00:03]} 49. Be8+ {[%clk
00:16:28]} {[%emt 00:01:47]} 1-0

[Event "FIDE Women's Grand Swiss 2023"]
[Site "Villa Marina, Douglas, Isle of Man, Isle Of Man"]
[Date "2023.10.30"]
[Round "6.8"]
[White "Fataliyeva, Ulviyya"]
[Black "Paehtz, Elisabeth"]
[Result "1-0"]
[TimeControl "40/90 + 30 + 30s/move"]
[WhiteFideId "13403052"]
[BlackFideId "4641833"]
[WhiteElo "2393"]
[BlackElo "2484"]

1. e4 {[%clk 01:30:57]} {[%emt 00:00:02]} c5 {[%clk 01:30:51]} {[%emt
00:00:10]} 2. Nf3 {[%clk 01:31:22]} {[%emt 00:00:05]} a6 {[%clk 01:31:15]}
{[%emt 00:00:07]} 3. c4 {[%clk 01:29:47]} {[%emt 00:02:04]} e6 {[%clk
01:31:06]} {[%emt 00:00:39]} 4. d4 {[%clk 01:30:05]} {[%emt 00:00:11]} cxd4
{[%clk 01:31:34]} {[%emt 00:00:03]} 5. Nxd4 {[%clk 01:30:28]} {[%emt 00:00:07]}
Nf6 {[%clk 01:31:56]} {[%emt 00:00:08]} 6. Bd3 {[%clk 01:28:31]} {[%emt
00:02:27]} Qb6 {[%clk 01:26:44]} {[%emt 00:05:42]} 7. Nb3 {[%clk 01:22:40]}
{[%emt 00:06:20]} d6 {[%clk 01:19:06]} {[%emt 00:08:09]} 8. Nc3 {[%clk
01:20:58]} {[%emt 00:02:12]} Be7 {[%clk 01:19:01]} {[%emt 00:00:35]} 9. a4
{[%clk 01:17:06]} {[%emt 00:04:22]} Qc7 {[%clk 01:18:38]} {[%emt 00:00:53]} 10.
Be3 {[%clk 01:14:47]} {[%emt 00:02:49]} Nc6 {[%clk 01:12:22]} {[%emt 00:06:47]}
11. a5 {[%clk 01:13:21]} {[%emt 00:01:56]} Ne5 {[%clk 00:56:37]} {[%emt
00:16:15]} 12. Bb6 {[%clk 01:11:02]} {[%emt 00:02:49]} Nxd3+ {[%clk 00:51:10]}
{[%emt 00:05:56]} 13. Qxd3 {[%clk 01:11:27]} {[%emt 00:00:05]} Qb8 {[%clk
00:50:48]} {[%emt 00:00:53]} 14. O-O {[%clk 01:08:59]} {[%emt 00:02:58]} O-O
{[%clk 00:49:57]} {[%emt 00:01:20]} 15. Rfd1 {[%clk 01:07:19]} {[%emt
00:02:09]} Bd7 {[%clk 00:46:21]} {[%emt 00:04:07]} 16. Qg3 {[%clk 00:56:00]}
{[%emt 00:11:48]} Bc6 {[%clk 00:43:24]} {[%emt 00:03:28]} 17. f3 {[%clk
00:54:16]} {[%emt 00:02:14]} Rc8 {[%clk 00:38:04]} {[%emt 00:05:50]} 18. Rac1
{[%clk 00:46:01]} {[%emt 00:08:45]} Be8 {[%clk 00:35:28]} {[%emt 00:03:07]} 19.
Nd2 {[%clk 00:45:38]} {[%emt 00:00:53]} g6 {[%clk 00:34:22]} {[%emt 00:01:36]}
20. b3 {[%clk 00:42:15]} {[%emt 00:03:53]} Nd7 {[%clk 00:28:35]} {[%emt
00:06:17]} 21. Na4 {[%clk 00:40:14]} {[%emt 00:02:32]} Ne5 {[%clk 00:27:54]}
{[%emt 00:01:11]} 22. f4 {[%clk 00:39:35]} {[%emt 00:01:08]} Bxa4 {[%clk
00:27:02]} {[%emt 00:01:23]} 23. fxe5 {[%clk 00:38:31]} {[%emt 00:01:33]} Be8
{[%clk 00:26:27]} {[%emt 00:01:05]} 24. Nf3 {[%clk 00:24:12]} {[%emt 00:14:50]}
dxe5 {[%clk 00:26:50]} {[%emt 00:00:07]} 25. Ng5 {[%clk 00:21:17]} {[%emt
00:03:24]} f6 {[%clk 00:25:05]} {[%emt 00:02:16]} 26. Qh3 {[%clk 00:21:10]}
{[%emt 00:00:37]} fxg5 {[%clk 00:23:23]} {[%emt 00:02:12]} 27. Qxe6+ {[%clk
00:21:36]} {[%emt 00:00:04]} Bf7 {[%clk 00:23:46]} {[%emt 00:00:06]} 28. Qxe7
{[%clk 00:22:01]} {[%emt 00:00:04]} Re8 {[%clk 00:23:44]} {[%emt 00:00:32]} 29.
Qxg5 {[%clk 00:21:58]} {[%emt 00:00:32]} Qc8 {[%clk 00:22:28]} {[%emt
00:01:47]} 30. Rd6 {[%clk 00:22:15]} {[%emt 00:00:13]} h6 {[%clk 00:22:35]}
{[%emt 00:00:24]} 31. Rxg6+ {[%clk 00:17:38]} {[%emt 00:05:07]} Bxg6 {[%clk
00:23:00]} {[%emt 00:00:05]} 32. Qxg6+ {[%clk 00:18:03]} {[%emt 00:00:05]} Kh8
{[%clk 00:23:26]} {[%emt 00:00:04]} 33. Qxh6+ {[%clk 00:18:26]} {[%emt
00:00:07]} Kg8 {[%clk 00:23:53]} {[%emt 00:00:04]} 34. Rc3 {[%clk 00:15:38]}
{[%emt 00:03:18]} 1-0

[Event "FIDE Women's Grand Swiss 2023"]
[Site "Villa Marina, Douglas, Isle of Man, Isle Of Man"]
[Date "2023.10.30"]
[Round "6.9"]
[White "Tsolakidou, Stavroula"]
[Black "Hoang, Thanh Trang"]
[Result "1-0"]
[TimeControl "40/90 + 30 + 30s/move"]
[WhiteFideId "4264312"]
[BlackFideId "12400149"]
[WhiteElo "2385"]
[BlackElo "2398"]

1. Nf3 {[%clk 01:30:55]} {[%emt 00:00:03]} f5 {[%clk 01:29:41]} {[%emt
00:01:19]} 2. d3 {[%clk 01:30:58]} {[%emt 00:00:28]} Nc6 {[%clk 01:28:48]}
{[%emt 00:01:23]} 3. d4 {[%clk 01:30:49]} {[%emt 00:00:39]} e6 {[%clk
01:26:28]} {[%emt 00:02:50]} 4. g3 {[%clk 01:30:39]} {[%emt 00:00:41]} Nf6
{[%clk 01:25:18]} {[%emt 00:01:39]} 5. Bg2 {[%clk 01:30:47]} {[%emt 00:00:22]}
g6 {[%clk 01:19:52]} {[%emt 00:05:56]} 6. c4 {[%clk 01:29:42]} {[%emt
00:01:36]} d6 {[%clk 01:18:35]} {[%emt 00:01:47]} 7. Nc3 {[%clk 01:23:47]}
{[%emt 00:06:25]} Bg7 {[%clk 01:15:06]} {[%emt 00:03:58]} 8. d5 {[%clk
01:19:20]} {[%emt 00:04:57]} Ne5 {[%clk 01:09:54]} {[%emt 00:05:42]} 9. Nxe5
{[%clk 01:10:25]} {[%emt 00:09:26]} dxe5 {[%clk 01:10:03]} {[%emt 00:00:20]} 10.
Qa4+ {[%clk 01:08:52]} {[%emt 00:02:03]} Bd7 {[%clk 01:05:39]} {[%emt
00:04:54]} 11. Qb4 {[%clk 01:08:33]} {[%emt 00:00:49]} Rb8 {[%clk 01:02:09]}
{[%emt 00:04:01]} 12. Be3 {[%clk 00:58:07]} {[%emt 00:10:55]} b6 {[%clk
00:55:04]} {[%emt 00:07:34]} 13. dxe6 {[%clk 00:45:58]} {[%emt 00:12:40]} Bxe6
{[%clk 00:55:00]} {[%emt 00:00:33]} 14. Rd1 {[%clk 00:46:23]} {[%emt 00:00:05]}
Qe7 {[%clk 00:53:14]} {[%emt 00:02:16]} 15. Qa4+ {[%clk 00:46:08]} {[%emt
00:00:46]} Kf7 {[%clk 00:50:13]} {[%emt 00:03:30]} 16. Qxa7 {[%clk 00:34:17]}
{[%emt 00:12:22]} Bxc4 {[%clk 00:45:57]} {[%emt 00:04:45]} 17. Bg5 {[%clk
00:26:11]} {[%emt 00:08:37]} e4 {[%clk 00:39:14]} {[%emt 00:07:13]} 18. Rc1
{[%clk 00:23:48]} {[%emt 00:02:54]} c5 {[%clk 00:34:59]} {[%emt 00:04:45]} 19.
Qxe7+ {[%clk 00:17:35]} {[%emt 00:06:43]} Kxe7 {[%clk 00:35:07]} {[%emt
00:00:21]} 20. Nxe4 {[%clk 00:17:57]} {[%emt 00:00:08]} Bxa2 {[%clk 00:32:48]}
{[%emt 00:02:49]} 21. Ra1 {[%clk 00:16:44]} {[%emt 00:01:44]} Bd5 {[%clk
00:27:58]} {[%emt 00:05:20]} 22. Ra7+ {[%clk 00:16:38]} {[%emt 00:00:37]} Ke6
{[%clk 00:21:27]} {[%emt 00:07:00]} 23. Rxg7 {[%clk 00:12:50]} {[%emt
00:04:17]} Bxe4 {[%clk 00:19:32]} {[%emt 00:02:26]} 24. f3 {[%clk 00:12:04]}
{[%emt 00:01:16]} Rb7 {[%clk 00:18:32]} {[%emt 00:01:30]} 25. Rxb7 {[%clk
00:11:56]} {[%emt 00:00:39]} Bxb7 {[%clk 00:18:55]} {[%emt 00:00:06]} 26. Kf2
{[%clk 00:11:59]} {[%emt 00:00:27]} Ra8 {[%clk 00:18:11]} {[%emt 00:01:15]} 27.
Rd1 {[%clk 00:11:46]} {[%emt 00:00:43]} Re8 {[%clk 00:12:52]} {[%emt 00:05:49]}
28. e4 {[%clk 00:10:10]} {[%emt 00:02:07]} Bc6 {[%clk 00:08:15]} {[%emt
00:05:07]} 29. Bh3 {[%clk 00:09:29]} {[%emt 00:01:10]} h6 {[%clk 00:04:36]}
{[%emt 00:04:09]} 30. exf5+ {[%clk 00:06:59]} {[%emt 00:03:00]} gxf5 {[%clk
00:04:55]} {[%emt 00:00:11]} 31. Bh4 {[%clk 00:03:31]} {[%emt 00:03:58]} Nd5
{[%clk 00:02:21]} {[%emt 00:03:04]} 32. Re1+ {[%clk 00:03:51]} {[%emt
00:00:10]} Kf7 {[%clk 00:02:34]} {[%emt 00:00:16]} 33. Rxe8 {[%clk 00:04:07]}
{[%emt 00:00:15]} Bxe8 {[%clk 00:02:54]} {[%emt 00:00:09]} 34. Bxf5 {[%clk
00:04:34]} {[%emt 00:00:04]} b5 {[%clk 00:03:01]} {[%emt 00:00:24]} 35. g4
{[%clk 00:03:16]} {[%emt 00:01:47]} c4 {[%clk 00:03:00]} {[%emt 00:00:31]} 36.
Bg3 {[%clk 00:02:57]} {[%emt 00:00:49]} b4 {[%clk 00:01:28]} {[%emt 00:02:02]}
37. Be5 {[%clk 00:03:13]} {[%emt 00:00:13]} Ba4 {[%clk 00:00:57]} {[%emt
00:01:01]} 38. h4 {[%clk 00:02:38]} {[%emt 00:01:05]} Bd1 {[%clk 00:00:48]}
{[%emt 00:00:40]} 39. g5 {[%clk 00:02:11]} {[%emt 00:00:57]} hxg5 {[%clk
00:00:57]} {[%emt 00:00:20]} 40. hxg5 {[%clk 00:02:38]} {[%emt 00:00:04]} Ne7
{[%clk 00:00:37]} {[%emt 00:00:50]} 41. Be4 {[%clk 00:01:35]} {[%emt 00:01:33]}
Ke6 {[%clk 00:25:17]} {[%emt 00:05:51]} 42. Bd4 {[%clk 00:27:36]} {[%emt
00:04:28]} Nf5 {[%clk 00:21:57]} {[%emt 00:03:50]} 43. Bc5 {[%clk 00:23:39]}
{[%emt 00:04:28]} c3 {[%clk 00:21:18]} {[%emt 00:01:09]} 44. Bxb4 {[%clk
00:23:48]} {[%emt 00:00:21]} cxb2 {[%clk 00:17:20]} {[%emt 00:04:28]} 45. Bc3
{[%clk 00:24:13]} {[%emt 00:00:05]} Nd6 {[%clk 00:16:43]} {[%emt 00:01:07]} 46.
Bd3 {[%clk 00:24:05]} {[%emt 00:00:37]} Nf7 {[%clk 00:13:40]} {[%emt 00:03:33]}
47. f4 {[%clk 00:23:32]} {[%emt 00:01:03]} Bg4 {[%clk 00:13:10]} {[%emt
00:00:59]} 48. Bxb2 {[%clk 00:19:43]} {[%emt 00:04:19]} Nd6 {[%clk 00:13:30]}
{[%emt 00:00:09]} 49. Be5 {[%clk 00:14:00]} {[%emt 00:06:13]} Bf5 {[%clk
00:11:56]} {[%emt 00:02:04]} 50. Be2 {[%clk 00:13:52]} {[%emt 00:00:38]} Ne4+
{[%clk 00:10:13]} {[%emt 00:02:13]} 51. Ke3 {[%clk 00:14:19]} {[%emt 00:00:03]}
Kf7 {[%clk 00:08:50]} {[%emt 00:01:52]} 52. Bh5+ {[%clk 00:14:07]} {[%emt
00:00:43]} Ke6 {[%clk 00:07:54]} {[%emt 00:01:26]} 53. Kd4 {[%clk 00:14:21]}
{[%emt 00:00:17]} Ng3 {[%clk 00:08:02]} {[%emt 00:00:21]} 54. Be8 {[%clk
00:13:49]} {[%emt 00:01:03]} Ke7 {[%clk 00:08:17]} {[%emt 00:00:14]} 55. Bb5
{[%clk 00:13:15]} {[%emt 00:01:05]} Bb1 {[%clk 00:07:19]} {[%emt 00:01:27]} 56.
Bc7 {[%clk 00:09:28]} {[%emt 00:04:17]} Nf5+ {[%clk 00:03:47]} {[%emt
00:04:02]} 57. Ke5 {[%clk 00:09:53]} {[%emt 00:00:05]} Nh4 {[%clk 00:04:12]}
{[%emt 00:00:05]} 58. Bc4 {[%clk 00:02:42]} {[%emt 00:07:42]} Nf3+ {[%clk
00:03:28]} {[%emt 00:01:13]} 59. Kd5 {[%clk 00:03:08]} {[%emt 00:00:05]} Kf7
{[%clk 00:03:32]} {[%emt 00:00:25]} 60. Be2 {[%clk 00:01:00]} {[%emt 00:02:38]}
Nh4 {[%clk 00:03:51]} {[%emt 00:00:11]} 61. Ke5 {[%clk 00:00:38]} {[%emt
00:00:53]} Ng6+ {[%clk 00:04:00]} {[%emt 00:00:21]} 62. Kd4 {[%clk 00:01:03]}
{[%emt 00:00:05]} Nh4 {[%clk 00:04:14]} {[%emt 00:00:16]} 63. Bc4+ {[%clk
00:00:35]} {[%emt 00:00:59]} Kg6 {[%clk 00:04:23]} {[%emt 00:00:20]} 64. Bd5
{[%clk 00:00:58]} {[%emt 00:00:06]} Nf5+ {[%clk 00:03:30]} {[%emt 00:01:23]} 65.
Ke5 {[%clk 00:01:25]} {[%emt 00:00:04]} Bc2 {[%clk 00:01:53]} {[%emt 00:02:07]}
66. Bc6 {[%clk 00:01:46]} {[%emt 00:00:09]} Bb1 {[%clk 00:01:13]} {[%emt
00:01:10]} 67. Bd8 {[%clk 00:01:58]} {[%emt 00:00:18]} Nh4 {[%clk 00:00:57]}
{[%emt 00:00:45]} 68. Ke6 {[%clk 00:00:57]} {[%emt 00:01:31]} Bf5+ {[%clk
00:01:02]} {[%emt 00:00:25]} 69. Ke5 {[%clk 00:00:35]} {[%emt 00:00:52]} Bc2
{[%clk 00:01:14]} {[%emt 00:00:18]} 70. Bf6 {[%clk 00:00:59]} {[%emt 00:00:07]}
Kf7 {[%clk 00:01:23]} {[%emt 00:00:21]} 71. Bd5+ {[%clk 00:01:08]} {[%emt
00:00:21]} Kg6 {[%clk 00:01:09]} {[%emt 00:00:44]} 72. Bd8 {[%clk 00:00:54]}
{[%emt 00:00:44]} Kg7 {[%clk 00:00:56]} {[%emt 00:00:43]} 73. Kd6 {[%clk
00:00:43]} {[%emt 00:00:41]} Kg6 {[%clk 00:00:36]} {[%emt 00:00:50]} 74. Be6
{[%clk 00:00:41]} {[%emt 00:00:33]} Bf5 {[%clk 00:00:44]} {[%emt 00:00:21]} 75.
Bd5 {[%clk 00:00:52]} {[%emt 00:00:19]} Bc2 {[%clk 00:01:04]} {[%emt 00:00:09]}
76. Ke6 {[%clk 00:01:05]} {[%emt 00:00:17]} Bf5+ {[%clk 00:01:23]} {[%emt
00:00:12]} 77. Ke7 {[%clk 00:00:38]} {[%emt 00:00:56]} Kg7 {[%clk 00:01:30]}
{[%emt 00:00:23]} 78. Bc7 {[%clk 00:00:54]} {[%emt 00:00:15]} Ng6+ {[%clk
00:01:27]} {[%emt 00:00:33]} 79. Ke8 {[%clk 00:01:20]} {[%emt 00:00:04]} Bc2
{[%clk 00:01:24]} {[%emt 00:00:32]} 80. Bd6 {[%clk 00:01:28]} {[%emt 00:00:22]}
Nh4 {[%clk 00:00:44]} {[%emt 00:01:10]} 81. Be5+ {[%clk 00:01:31]} {[%emt
00:00:28]} Kg6 {[%clk 00:00:49]} {[%emt 00:00:24]} 82. Kf8 {[%clk 00:01:23]}
{[%emt 00:00:38]} Bb1 {[%clk 00:00:37]} {[%emt 00:00:43]} 83. Be6 {[%clk
00:01:03]} {[%emt 00:00:49]} Bf5 {[%clk 00:00:43]} {[%emt 00:00:24]} 84. Bf7+
{[%clk 00:01:27]} {[%emt 00:00:06]} Kh7 {[%clk 00:01:07]} {[%emt 00:00:05]} 85.
Ke7 {[%clk 00:01:49]} {[%emt 00:00:08]} Bb1 {[%clk 00:00:38]} {[%emt 00:00:59]}
86. Kf6 {[%clk 00:02:15]} {[%emt 00:00:04]} Bc2 {[%clk 00:00:35]} {[%emt
00:00:32]} 87. Be6 {[%clk 00:02:33]} {[%emt 00:00:12]} Bb1 {[%clk 00:00:39]}
{[%emt 00:00:27]} 88. f5 {[%clk 00:02:47]} {[%emt 00:00:16]} Bc2 {[%clk
00:01:01]} {[%emt 00:00:08]} 89. Bg3 {[%clk 00:03:06]} {[%emt 00:00:11]} 1-0

[Event "FIDE Women's Grand Swiss 2023"]
[Site "Villa Marina, Douglas, Isle of Man, Isle Of Man"]
[Date "2023.10.30"]
[Round "6.10"]
[White "Kamalidenova, Meruert"]
[Black "Javakhishvili, Lela"]
[Result "1/2-1/2"]
[TimeControl "40/90 + 30 + 30s/move"]
[WhiteFideId "13712802"]
[BlackFideId "13601458"]
[WhiteElo "2351"]
[BlackElo "2437"]

1. e4 {[%clk 01:30:56]} {[%emt 00:00:03]} e5 {[%clk 01:30:49]} {[%emt
00:00:11]} 2. Nf3 {[%clk 01:31:21]} {[%emt 00:00:05]} Nc6 {[%clk 01:31:15]}
{[%emt 00:00:04]} 3. Bb5 {[%clk 01:31:46]} {[%emt 00:00:05]} a6 {[%clk
01:31:24]} {[%emt 00:00:22]} 4. Ba4 {[%clk 01:32:10]} {[%emt 00:00:05]} Bc5
{[%clk 01:31:31]} {[%emt 00:00:22]} 5. O-O {[%clk 01:32:07]} {[%emt 00:00:33]}
Nge7 {[%clk 01:31:45]} {[%emt 00:00:15]} 6. c3 {[%clk 01:31:30]} {[%emt
00:01:07]} Ng6 {[%clk 01:32:00]} {[%emt 00:00:15]} 7. d4 {[%clk 01:31:06]}
{[%emt 00:00:55]} Ba7 {[%clk 01:32:08]} {[%emt 00:00:22]} 8. Bg5 {[%clk
01:31:02]} {[%emt 00:00:33]} f6 {[%clk 01:32:30]} {[%emt 00:00:08]} 9. Be3
{[%clk 01:31:28]} {[%emt 00:00:04]} O-O {[%clk 01:32:49]} {[%emt 00:00:12]} 10.
Nbd2 {[%clk 01:31:29]} {[%emt 00:00:29]} Kh8 {[%clk 01:32:58]} {[%emt
00:00:21]} 11. Re1 {[%clk 01:30:34]} {[%emt 00:01:25]} exd4 {[%clk 01:32:55]}
{[%emt 00:00:33]} 12. cxd4 {[%clk 01:30:07]} {[%emt 00:00:58]} d5 {[%clk
01:33:01]} {[%emt 00:00:24]} 13. Bxc6 {[%clk 01:25:24]} {[%emt 00:05:13]} bxc6
{[%clk 01:33:23]} {[%emt 00:00:08]} 14. Qc2 {[%clk 01:24:43]} {[%emt 00:01:10]}
dxe4 {[%clk 01:21:58]} {[%emt 00:11:55]} 15. Nxe4 {[%clk 01:20:32]} {[%emt
00:04:41]} Bg4 {[%clk 01:17:51]} {[%emt 00:04:35]} 16. Ned2 {[%clk 01:17:35]}
{[%emt 00:03:28]} Qd5 {[%clk 01:14:19]} {[%emt 00:04:03]} 17. Rac1 {[%clk
01:14:05]} {[%emt 00:04:00]} Bd7 {[%clk 00:56:54]} {[%emt 00:17:55]} 18. Qc4
{[%clk 01:07:40]} {[%emt 00:06:55]} Qb5 {[%clk 00:53:12]} {[%emt 00:04:11]} 19.
Qxb5 {[%clk 00:57:21]} {[%emt 00:10:49]} axb5 {[%clk 00:53:21]} {[%emt
00:00:21]} 20. d5 {[%clk 00:54:56]} {[%emt 00:02:55]} Bxe3 {[%clk 00:45:56]}
{[%emt 00:07:55]} 21. Rxe3 {[%clk 00:54:12]} {[%emt 00:01:14]} Rxa2 {[%clk
00:40:10]} {[%emt 00:06:16]} 22. dxc6 {[%clk 00:53:51]} {[%emt 00:00:50]} Bg4
{[%clk 00:37:05]} {[%emt 00:03:34]} 23. Rb3 {[%clk 00:53:00]} {[%emt 00:01:22]}
Rb8 {[%clk 00:36:12]} {[%emt 00:01:22]} 24. Re1 {[%clk 00:47:47]} {[%emt
00:05:43]} Kg8 {[%clk 00:32:05]} {[%emt 00:04:37]} 25. h3 {[%clk 00:45:26]}
{[%emt 00:02:51]} Bxf3 {[%clk 00:32:10]} {[%emt 00:00:25]} 26. Nxf3 {[%clk
00:45:51]} {[%emt 00:00:05]} Ra4 {[%clk 00:27:13]} {[%emt 00:05:28]} 27. Rc1
{[%clk 00:44:16]} {[%emt 00:02:04]} Ne7 {[%clk 00:25:22]} {[%emt 00:02:21]} 28.
Re3 {[%clk 00:40:43]} {[%emt 00:04:02]} Nd5 {[%clk 00:21:14]} {[%emt 00:04:38]}
29. Rd3 {[%clk 00:39:29]} {[%emt 00:01:43]} Nf4 {[%clk 00:21:14]} {[%emt
00:00:31]} 30. Rd2 {[%clk 00:39:15]} {[%emt 00:00:44]} Re4 {[%clk 00:14:54]}
{[%emt 00:06:50]} 31. Rc5 {[%clk 00:32:49]} {[%emt 00:06:56]} Ne6 {[%clk
00:14:19]} {[%emt 00:01:06]} 32. Rcc2 {[%clk 00:26:16]} {[%emt 00:07:03]} Rc4
{[%clk 00:14:01]} {[%emt 00:00:48]} 33. Rxc4 {[%clk 00:23:10]} {[%emt
00:03:36]} bxc4 {[%clk 00:14:29]} {[%emt 00:00:03]} 34. Rc2 {[%clk 00:22:52]}
{[%emt 00:00:48]} Rb6 {[%clk 00:14:24]} {[%emt 00:00:36]} 35. Nd2 {[%clk
00:21:02]} {[%emt 00:02:19]} 1/2-1/2